bitfinex/quotes_BTCUSD_20241001
["timestamp","ask_amount","ask_price","bid_price","bid_amount"]
[1727771082295,1.19996904,64067.0,64066.0,0.000824]
[1727771083269,1.31806732,64067.0,64066.0,0.000824]
[1727771083495,1.4745141,64067.0,64066.0,0.000824]
[1727771084661,1.31806732,64067.0,64066.0,0.000824]
[1727771085641,1.29360227,64067.0,64066.0,0.000824]
[1727771086089,1.23536816,64067.0,64066.0,0.000824]
[1727771086345,1.29360227,64067.0,64066.0,0.000824]
[1727771087770,1.28830268,64067.0,64066.0,0.000824]
[1727771088665,1.31276946,64067.0,64066.0,0.000824]
[1727771089810,1.37441448,64067.0,64066.0,0.000824]
[1727771090272,1.37941448,64067.0,64066.0,0.000824]
[1727771090512,1.71497794,64067.0,64066.0,0.000824]
[1727771090745,1.37797118,64067.0,64066.0,0.000824]
[1727771090957,1.49606946,64067.0,64066.0,0.000824]
[1727771095177,1.47160268,64067.0,64066.0,0.000824]
[1727771096099,1.49607006,64067.0,64066.0,0.000824]
[1727771097014,1.12896946,64067.0,64066.0,0.000824]
[1727771097216,1.28148544,64067.0,64066.0,0.000824]
[1727771097457,1.49500903,64067.0,64066.0,0.000824]
[1727771098532,1.65145581,64067.0,64066.0,0.000824]
[1727771098770,1.59500903,64067.0,64066.0,0.000824]
[1727771099482,1.59300903,64067.0,64066.0,0.000824]
[1727771099928,1.60700903,64067.0,64066.0,0.000824]
[1727771100177,1.59800903,64067.0,64066.0,0.000824]
[1727771100414,1.60724903,64067.0,64066.0,0.000824]
[1727771100638,1.77269581,64067.0,64066.0,0.000824]
[1727771100873,1.77769581,64067.0,64066.0,0.000824]
[1727771101106,1.62517932,64067.0,64066.0,0.000824]
[1727771101333,1.77666209,64067.0,64066.0,0.000824]
[1727771102956,1.75219471,64067.0,64066.0,0.000824]
[1727771103242,1.59574793,64067.0,64066.0,0.000824]
[1727771105580,1.59579926,64067.0,64066.0,0.000824]
[1727771106019,1.62026827,64067.0,64066.0,0.000824]
[1727771107189,1.52306827,64067.0,64066.0,0.000824]
[1727771109658,1.58495085,64067.0,64066.0,0.000824]
[1727771109873,1.52306827,64067.0,64066.0,0.000824]
[1727771112498,1.52312993,64067.0,64066.0,0.000824]
[1727771114065,1.59919034,64067.0,64066.0,0.000824]
[1727771114966,1.59990314,64067.0,64066.0,0.000824]
[1727771115196,1.59490314,64067.0,64066.0,0.000824]
[1727771115426,1.43774196,64067.0,64066.0,0.000824]
[1727771115905,1.41327295,64067.0,64066.0,0.000824]
[1727771117570,1.29517467,64067.0,64066.0,0.000824]
[1727771117800,1.41327295,64067.0,64066.0,0.000824]
[1727771118701,1.43774131,64067.0,64066.0,0.000824]
[1727771120443,1.59490249,64067.0,64066.0,0.000824]
[1727771121564,1.59495498,64067.0,64066.0,0.000824]
[1727771124301,1.43774131,64067.0,64066.0,0.000824]
[1727771124717,1.43801775,64067.0,64066.0,0.000824]
[1727771124954,1.43801155,64067.0,64066.0,0.000824]
[1727771125163,1.41354319,64067.0,64066.0,0.000824]
[1727771128019,1.43801144,64067.0,64066.0,0.000824]
[1727771134415,1.41354319,64067.0,64066.0,0.000824]
[1727771137326,1.43801138,64067.0,64066.0,0.000824]
[1727771139093,1.43808819,64067.0,64066.0,0.000824]
[1727771139326,1.43837396,64067.0,64066.0,0.000824]
[1727771140461,1.41390577,64067.0,64066.0,0.000824]
[1727771141709,1.438374,64067.0,64066.0,0.000824]
[1727771144155,1.43837215,64067.0,64066.0,0.000824]
[1727771144599,1.41390392,64067.0,64066.0,0.000824]
[1727771145793,1.4383725,64067.0,64066.0,0.000824]
[1727771148958,1.43836062,64067.0,64066.0,0.000824]
[1727771149860,1.61766062,64067.0,64066.0,0.000824]
[1727771150741,1.52116062,64067.0,64066.0,0.000824]
[1727771152081,1.32018553,64067.0,64066.0,0.000824]
[1727771152330,1.43836062,64067.0,64066.0,0.000824]
[1727771152761,1.438368,64067.0,64066.0,0.000824]
[1727771153001,1.59573711,64067.0,64066.0,0.000824]
[1727771153441,1.5967982,64067.0,64066.0,0.000824]
[1727771153856,1.59683464,64067.0,64066.0,0.000824]
[1727771155677,1.30701582,64067.0,64066.0,0.090924]
[1727771156106,1.28254724,64067.0,64066.0,0.090924]
[1727771158359,1.29701289,64067.0,64066.0,0.090924]
[1727771158798,1.29722102,64067.0,64066.0,0.090924]
[1727771159224,1.32168882,64067.0,64066.0,0.090924]
[1727771159878,1.32168882,64067.0,64066.0,0.000824]
[1727771160531,1.29722102,64067.0,64066.0,0.000824]
[1727771162076,1.29705791,64067.0,64066.0,0.000824]
[1727771163397,1.321526,64067.0,64066.0,0.000824]
[1727771164045,1.29705791,64067.0,64066.0,0.000824]
[1727771166942,1.32152605,64067.0,64066.0,0.000824]
[1727771169313,1.29705791,64067.0,64066.0,0.000824]
[1727771171796,1.29714443,64067.0,64066.0,0.000824]
[1727771172238,1.32161246,64067.0,64066.0,0.000824]
[1727771176674,1.32158961,64067.0,64066.0,0.000824]
[1727771182319,1.47888846,64067.0,64066.0,0.000824]
[1727771186125,1.45442043,64067.0,64066.0,0.000824]
[1727771188997,1.47888876,64067.0,64066.0,0.000824]
[1727771190134,1.45442043,64067.0,64066.0,0.000824]
[1727771191269,1.45452086,64067.0,64066.0,0.000824]
[1727771193234,1.47898915,64067.0,64066.0,0.000824]
[1727771195042,1.32165344,64067.0,64066.0,0.000824]
[1727771195925,0.95403774,64067.0,64066.0,0.000824]
[1727771196131,1.10719614,64067.0,64066.0,0.000824]
[1727771196367,1.32161791,64067.0,64066.0,0.000824]
[1727771197226,1.47899985,64067.0,64066.0,0.000824]
[1727771197438,1.45453156,64067.0,64066.0,0.000824]
[1727771198300,1.32161791,64067.0,64066.0,0.000824]
[1727771200793,1.32182152,64067.0,64066.0,0.000824]
[1727771203049,1.44000399,64067.0,64066.0,0.000824]
[1727771203506,1.62170399,64067.0,64066.0,0.000824]
[1727771203953,1.5016357,64067.0,64066.0,0.000824]
[1727771204587,1.4155357,64067.0,64066.0,0.000824]
[1727771204816,1.29735323,64067.0,64066.0,0.000824]
[1727771205723,1.24009998,64067.0,64066.0,0.000824]
[1727771205931,1.45452141,64067.0,64066.0,0.000824]
[1727771207005,1.4789899,64067.0,64066.0,0.000824]
[1727771208280,1.45452141,64067.0,64066.0,0.000824]
[1727771210310,0.95403805,64067.0,64066.0,0.000824]
[1727771210530,1.26449542,64067.0,64066.0,0.000824]
[1727771210744,1.47880878,64067.0,64066.0,0.000824]
[1727771215180,0.81402066,64067.0,64066.0,0.29290647]
[1727771215394,0.65050439,64067.0,64066.0,0.45211697]
[1727771215631,0.65050439,64067.0,64066.0,0.44899547]
[1727771215850,0.49656,64067.0,64066.0,0.44899547]
[1727771216305,0.49556,64067.0,64066.0,0.44899547]
[1727771216533,0.50056,64067.0,64066.0,0.44899547]
[1727771216976,0.49156,64067.0,64066.0,0.44899547]
[1727771217180,0.49556,64067.0,64066.0,0.330813]
[1727771217431,0.49656,64067.0,64066.0,0.330813]
[1727771217870,0.49756,64067.0,64066.0,0.330813]
[1727771218116,0.49656,64067.0,64066.0,0.330813]
[1727771218352,0.49756,64067.0,64066.0,0.330813]
[1727771222347,0.52202515,64067.0,64066.0,0.330813]
[1727771224081,0.51352515,64067.0,64066.0,0.44899547]
[1727771224309,0.51352515,64067.0,64066.0,0.60545327]
[1727771224531,0.41352515,64067.0,64066.0,0.60545327]
[1727771225044,0.38906,64067.0,64066.0,0.60545327]
[1727771225266,0.37906,64067.0,64066.0,0.60545327]
[1727771225482,0.38006,64067.0,64066.0,0.60545327]
[1727771225713,0.18006,64067.0,64066.0,0.60545327]
[1727771225947,0.18006,64067.0,64066.0,0.72845327]
[1727771226179,0.09816,64067.0,64066.0,0.69309327]
[1727771226399,0.09816,64067.0,64066.0,0.69359327]
[1727771226400,0.09716,64067.0,64066.0,0.69359327]
[1727771226830,0.09816,64067.0,64066.0,0.69759327]
[1727771227253,0.09616,64067.0,64066.0,0.69359327]
[1727771227476,0.09816,64067.0,64066.0,0.71659327]
[1727771227685,0.09716,64067.0,64066.0,0.70759327]
[1727771228123,0.12162029,64067.0,64066.0,0.70759327]
[1727771228359,0.09816,64067.0,64066.0,0.72159327]
[1727771231222,0.12262022,64067.0,64066.0,0.72159327]
[1727771233151,0.09816,64067.0,64066.0,0.72159327]
[1727771236228,0.12262042,64067.0,64066.0,0.72159327]
[1727771236666,0.12262042,64067.0,64066.0,0.69809327]
[1727771237975,0.12262042,64067.0,64066.0,0.63555327]
[1727771238402,0.12262042,64067.0,64066.0,0.69809727]
[1727771239137,0.09816,64067.0,64066.0,0.69809727]
[1727771241882,0.09816,64067.0,64066.0,0.63555327]
[1727771242344,0.12262167,64067.0,64066.0,0.69809727]
[1727771243015,0.12262167,64067.0,64066.0,0.63555327]
[1727771243234,0.12262167,64067.0,64066.0,0.69809727]
[1727771243678,0.09816,64067.0,64066.0,0.63555327]
[1727771247124,0.099808,64067.0,64066.0,0.63555327]
[1727771247815,0.1242697,64067.0,64066.0,0.63555327]
[1727771252571,0.099808,64067.0,64066.0,0.63555327]
[1727771255557,0.12426977,64067.0,64066.0,0.63555327]
[1727771257305,0.099808,64067.0,64066.0,0.63555327]
[1727771257856,0.099808,64067.0,64066.0,0.64686107]
[1727771259154,0.197108,64067.0,64066.0,0.1962208]
[1727771259370,0.201608,64067.0,64066.0,0.184913]
[1727771261187,0.200608,64067.0,64066.0,0.170913]
[1727771261395,0.199608,64067.0,64066.0,0.156913]
[1727771261615,0.199608,64067.0,64066.0,0.167913]
[1727771261616,0.201608,64067.0,64066.0,0.167913]
[1727771261835,0.201608,64067.0,64066.0,0.159913]
[1727771262039,0.200608,64067.0,64066.0,0.156913]
[1727771262309,0.22707216,64067.0,64066.0,0.165913]
[1727771263299,0.202608,64067.0,64066.0,0.165913]
[1727771266092,0.202608,64067.0,64066.0,0.009824]
[1727771267526,0.22707248,64067.0,64066.0,0.009824]
[1727771267933,0.38315848,64067.0,64066.0,0.009824]
[1727771268322,0.53404623,64067.0,64066.0,0.009824]
[1727771268540,0.50958175,64067.0,64066.0,0.009824]
[1727771270240,0.439694,64067.0,64066.0,0.009824]
[1727771270913,0.441694,64067.0,64066.0,0.009824]
[1727771271150,0.283608,64067.0,64066.0,0.009824]
[1727771271345,0.439694,64067.0,64066.0,0.009824]
[1727771271599,0.30807377,64067.0,64066.0,0.009824]
[1727771271810,0.46615977,64067.0,64066.0,0.009824]
[1727771272244,0.30807377,64067.0,64066.0,0.009824]
[1727771272459,0.439694,64067.0,64066.0,0.009824]
[1727771272660,0.283608,64067.0,64066.0,0.009824]
[1727771273980,0.285608,64067.0,64066.0,0.009824]
[1727771274612,0.283608,64067.0,64066.0,0.009824]
[1727771275530,0.30807409,64067.0,64066.0,0.009824]
[1727771276523,0.31007409,64067.0,64066.0,0.009824]
[1727771278401,0.46616009,64067.0,64066.0,0.009824]
[1727771279067,0.441694,64067.0,64066.0,0.009824]
[1727771279508,0.285608,64067.0,64066.0,0.009824]
[1727771281350,0.283608,64067.0,64066.0,0.009824]
[1727771282518,0.30807428,64067.0,64066.0,0.009824]
[1727771285187,0.31007428,64067.0,64066.0,0.009824]
[1727771288754,0.30807428,64067.0,64066.0,0.009824]
[1727771290422,0.283608,64067.0,64066.0,0.009824]
[1727771293558,0.30807428,64067.0,64066.0,0.009824]
[1727771294880,0.46416028,64067.0,64066.0,0.009824]
[1727771295554,0.51073384,64067.0,64066.0,0.009824]
[1727771297036,0.35464784,64067.0,64066.0,0.009824]
[1727771297892,0.35664784,64067.0,64066.0,0.009824]
[1727771298527,0.31007428,64067.0,64066.0,0.009824]
[1727771298737,0.30807428,64067.0,64066.0,0.009824]
[1727771299187,0.3302171,64067.0,64066.0,0.009824]
[1727771299452,0.283608,64067.0,64066.0,0.009824]
[1727771299881,0.35346834,64067.0,64066.0,0.009824]
[1727771300109,0.206608,64067.0,64066.0,0.009824]
[1727771300542,0.27646834,64067.0,64066.0,0.009824]
[1727771301619,0.206608,64067.0,64066.0,0.009824]
[1727771301862,0.276556,64067.0,64066.0,0.009824]
[1727771302358,0.30102203,64067.0,64066.0,0.009824]
[1727771302578,0.23107403,64067.0,64066.0,0.009824]
[1727771302804,0.30103711,64067.0,64066.0,0.009824]
[1727771303530,0.23107403,64067.0,64066.0,0.009824]
[1727771303743,0.32422115,64067.0,64066.0,0.009824]
[1727771304168,0.32438355,64067.0,64066.0,0.009824]
[1727771304440,0.23107403,64067.0,64066.0,0.009824]
[1727771305326,0.32441807,64067.0,64066.0,0.009824]
[1727771305546,0.23107403,64067.0,64066.0,0.009824]
[1727771306215,0.34771093,64067.0,64066.0,0.009824]
[1727771306666,0.50379693,64067.0,64066.0,0.009824]
[1727771306908,0.38716003,64067.0,64066.0,0.009824]
[1727771307335,0.50384568,64067.0,64066.0,0.009824]
[1727771307766,0.38716003,64067.0,64066.0,0.009824]
[1727771310000,0.38916003,64067.0,64066.0,0.009824]
[1727771313137,0.23107403,64067.0,64066.0,0.009824]
[1727771313562,0.38716003,64067.0,64066.0,0.009824]
[1727771313768,0.23107403,64067.0,64066.0,0.009824]
[1727771317737,0.23307403,64067.0,64066.0,0.009824]
[1727771318630,0.208608,64067.0,64066.0,0.009824]
[1727771320841,0.206608,64067.0,64066.0,0.009824]
[1727771321739,0.71593427,64067.0,64066.0,0.009824]
[1727771321987,0.94633524,64067.0,64066.0,0.009824]
[1727771322448,0.82815277,64067.0,64066.0,0.009824]
[1727771322650,0.60617561,64067.0,64066.0,0.009824]
[1727771322877,0.4681331,64067.0,64066.0,0.009824]
[1727771323093,0.4681331,64067.0,64066.0,0.000824]
[1727771323094,0.6212191,64067.0,64066.0,0.000824]
[1727771323321,0.74140157,64067.0,64066.0,0.001824]
[1727771323958,0.94736185,64067.0,64066.0,0.000824]
[1727771324161,0.74140157,64067.0,64066.0,0.001824]
[1727771325210,0.71693427,64067.0,64066.0,0.001824]
[1727771325633,0.92289455,64067.0,64066.0,0.001824]
[1727771325847,0.71693427,64067.0,64066.0,0.001824]
[1727771326517,0.71693427,64067.0,64061.0,0.001225]
[1727771326518,0.160098,64062.0,64061.0,0.001225]
[1727771326732,0.61493827,64062.0,64061.0,0.001225]
[1727771327885,0.61693827,64062.0,64061.0,0.001225]
[1727771328104,0.64140863,64062.0,64061.0,0.001225]
[1727771328331,0.7568049,64062.0,64061.0,0.001225]
[1727771328565,0.61693827,64062.0,64061.0,0.001225]
[1727771328777,0.61893827,64062.0,64061.0,0.001225]
[1727771329205,0.62343827,64062.0,64061.0,0.001225]
[1727771329434,0.63799801,64062.0,64061.0,0.002225]
[1727771329670,0.84244613,64062.0,64061.0,0.002225]
[1727771330343,0.63799801,64062.0,64061.0,0.002225]
[1727771330543,0.77775521,64062.0,64061.0,0.002225]
[1727771331647,0.80222587,64062.0,64061.0,0.002225]
[1727771332510,0.66246867,64062.0,64061.0,0.002225]
[1727771332738,0.77775521,64062.0,64061.0,0.002225]
[1727771333583,0.63799801,64062.0,64061.0,0.002225]
[1727771335710,0.66246862,64062.0,64061.0,0.002225]
[1727771338426,0.55358451,64062.0,64061.0,0.002225]
[1727771338650,0.15465115,64062.0,64061.0,0.002225]
[1727771338849,0.1081,64062.0,64061.0,0.002225]
[1727771341566,0.1566544,64062.0,64061.0,0.002225]
[1727771343242,0.5686874,64062.0,64061.0,0.002225]
[1727771343665,0.4988558,64062.0,64061.0,0.002225]
[1727771344565,0.59196461,64062.0,64061.0,0.002225]
[1727771346156,0.20320881,64062.0,64061.0,0.002225]
[1727771346357,0.1081,64062.0,64061.0,0.002225]
[1727771346558,0.1101,64062.0,64061.0,0.002225]
[1727771346814,0.15666084,64062.0,64061.0,0.002225]
[1727771347233,0.1101,64062.0,64061.0,0.002225]
[1727771348525,0.15666459,64062.0,64061.0,0.002225]
[1727771348771,0.1081,64062.0,64061.0,0.002225]
[1727771351939,0.1101,64062.0,64061.0,0.002225]
[1727771354247,0.1081,64062.0,64061.0,0.002225]
[1727771356553,0.1081,64062.0,64061.0,0.158326]
[1727771356779,0.1081,64062.0,64061.0,0.238226]
[1727771356780,0.0065,64062.0,64061.0,0.238226]
[1727771356983,0.0065,64062.0,64061.0,0.24134762]
[1727771357854,0.002,64062.0,64061.0,0.24134762]
[1727771358666,0.0065,64062.0,64061.0,0.24134762]
[1727771359296,0.0065,64062.0,64061.0,0.238226]
[1727771361668,0.03096588,64062.0,64061.0,0.238226]
[1727771362556,0.03096588,64062.0,64061.0,0.24134763]
[1727771364988,0.02646588,64062.0,64061.0,0.24134763]
[1727771366533,0.03096588,64062.0,64061.0,0.24134763]
[1727771366755,0.02646588,64062.0,64061.0,0.24134763]
[1727771367222,0.02646588,64062.0,64061.0,0.238226]
[1727771367930,0.02646588,64062.0,64061.0,0.24134761]
[1727771368574,0.002,64062.0,64061.0,0.24134761]
[1727771368774,0.002,64062.0,64061.0,0.238226]
[1727771368992,0.002,64062.0,64061.0,0.24134757]
[1727771371827,0.02646452,64062.0,64061.0,0.24134757]
[1727771372041,0.02646452,64062.0,64061.0,0.24034757]
[1727771372291,0.02446452,64062.0,64061.0,0.24034757]
[1727771372505,0.02546452,64062.0,64061.0,0.24634757]
[1727771373167,0.02546452,64062.0,64061.0,0.24334757]
[1727771373627,0.02546452,64062.0,64061.0,0.24634757]
[1727771374290,0.02446452,64062.0,64061.0,0.24334757]
[1727771374515,0.02546452,64062.0,64061.0,0.24934757]
[1727771374742,0.02546452,64062.0,64061.0,0.24634757]
[1727771374958,0.02446452,64062.0,64061.0,0.24034757]
[1727771375176,0.02546452,64062.0,64061.0,0.24634757]
[1727771375418,0.02646452,64062.0,64061.0,0.25534757]
[1727771375652,0.02546452,64062.0,64061.0,0.24934757]
[1727771375875,0.02546452,64062.0,64061.0,0.24634757]
[1727771376089,0.02646452,64062.0,64061.0,0.24934757]
[1727771376540,0.02746452,64062.0,64061.0,0.25634757]
[1727771377430,0.02646452,64062.0,64061.0,0.24734757]
[1727771377685,0.02746452,64062.0,64061.0,0.25634757]
[1727771377915,0.02546452,64062.0,64061.0,0.24934757]
[1727771378151,0.02446452,64062.0,64061.0,0.24834757]
[1727771378369,0.02546452,64062.0,64061.0,0.24834757]
[1727771378588,0.02646452,64062.0,64061.0,0.255226]
[1727771379282,0.002,64062.0,64061.0,0.255226]
[1727771381911,0.002,64062.0,64061.0,0.59612538]
[1727771382133,0.002,64062.0,64061.0,0.356226]
[1727771382577,0.02646241,64062.0,64061.0,0.356226]
[1727771382993,0.02546241,64062.0,64061.0,0.348226]
[1727771383219,0.02546241,64062.0,64061.0,0.355226]
[1727771383436,0.02546241,64062.0,64061.0,0.345226]
[1727771383859,0.02646241,64062.0,64061.0,0.358226]
[1727771387066,0.02646241,64062.0,64061.0,0.5146838]
[1727771389094,0.002,64062.0,64061.0,0.5146838]
[1727771395613,0.02646258,64062.0,64061.0,0.5146838]
[1727771399201,0.002,64062.0,64061.0,0.5146838]
[1727771402487,0.02646305,64062.0,64061.0,0.5146838]
[1727771405241,0.02546305,64062.0,64061.0,0.5076838]
[1727771405477,0.02646305,64062.0,64061.0,0.5176838]
[1727771405700,0.02546305,64062.0,64061.0,0.5076838]
[1727771405905,0.02446305,64062.0,64061.0,0.4946838]
[1727771406131,0.02546305,64062.0,64061.0,0.5046838]
[1727771406376,0.02646305,64062.0,64061.0,0.53291856]
[1727771406582,0.02646305,64062.0,64061.0,0.53191856]
[1727771406799,0.02546305,64062.0,64061.0,0.63910103]
[1727771407267,0.02646305,64062.0,64061.0,0.65110831]
[1727771407491,0.02646305,64062.0,64061.0,0.63486627]
[1727771408828,0.002,64062.0,64061.0,0.63486627]
[1727771410428,0.002,64062.0,64061.0,0.65116231]
[1727771412010,0.02646234,64062.0,64061.0,0.65116231]
[1727771412916,0.02546234,64062.0,64061.0,0.64116231]
[1727771413373,0.02546234,64062.0,64061.0,0.65116231]
[1727771413594,0.02446234,64062.0,64061.0,0.63916231]
[1727771414039,0.02446234,64062.0,64061.0,0.65116231]
[1727771415332,0.02446234,64062.0,64061.0,0.72690217]
[1727771415587,0.02446234,64062.0,64061.0,0.99494865]
[1727771415808,0.02446234,64062.0,64061.0,1.01836194]
[1727771416015,0.02446234,64062.0,64061.0,0.90129551]
[1727771416247,0.02446234,64062.0,64061.0,1.01836194]
[1727771416474,0.02446234,64062.0,64061.0,1.00836194]
[1727771416691,0.02446234,64062.0,64061.0,0.99636194]
[1727771416930,0.02446234,64062.0,64061.0,1.03912303]
[1727771417137,0.02446234,64062.0,64061.0,1.02512303]
[1727771417367,0.02446234,64062.0,64061.0,0.9080566]
[1727771417592,0.02446234,64062.0,64061.0,0.8940566]
[1727771417831,0.02446234,64062.0,64061.0,0.9080566]
[1727771418264,0.02446234,64062.0,64061.0,0.8940566]
[1727771418704,3.4e-07,64062.0,64061.0,0.9080566]
[1727771418935,0.001648,64066.0,64065.0,0.262591]
[1727771419148,0.001648,64066.0,64065.0,0.8207464]
[1727771419349,0.001648,64066.0,64065.0,0.91128744]
[1727771420208,0.001648,64066.0,64065.0,0.81762527]
[1727771420670,0.001648,64066.0,64065.0,0.84791804]
[1727771421082,0.001648,64066.0,64065.0,0.86191804]
[1727771421315,0.001648,64066.0,64065.0,0.93287888]
[1727771422858,0.001648,64066.0,64065.0,0.93286783]
[1727771423348,0.001648,64066.0,64065.0,0.65811299]
[1727771426373,0.001648,64066.0,64065.0,0.64183127]
[1727771426591,0.001648,64066.0,64065.0,0.6581255]
[1727771426806,0.001648,64066.0,64065.0,0.67441914]
[1727771427040,0.001648,64066.0,64065.0,0.65812491]
[1727771427258,0.001648,64066.0,64065.0,0.92430378]
[1727771427709,0.001648,64066.0,64065.0,0.93830378]
[1727771428136,0.001648,64066.0,64065.0,0.92430378]
[1727771428379,0.001648,64066.0,64065.0,0.93830378]
[1727771428593,0.001648,64066.0,64065.0,0.92430378]
[1727771428799,0.001648,64066.0,64065.0,0.88447937]
[1727771430182,0.001648,64066.0,64065.0,1.04907937]
[1727771430397,0.001648,64066.0,64065.0,0.97998694]
[1727771430604,0.001648,64066.0,64065.0,0.88637937]
[1727771430843,0.001648,64066.0,64065.0,1.00338884]
[1727771431286,0.001648,64066.0,64065.0,0.88447937]
[1727771432627,0.001648,64066.0,64065.0,0.8679412]
[1727771432841,0.001648,64066.0,64065.0,0.88435171]
[1727771434168,0.001648,64066.0,64065.0,0.97793061]
[1727771434869,0.001648,64066.0,64065.0,0.88435171]
[1727771435765,0.001648,64066.0,64065.0,0.88414428]
[1727771437120,0.001648,64066.0,64065.0,0.95432752]
[1727771437546,0.001648,64066.0,64065.0,0.88414428]
[1727771439320,0.001648,64066.0,64065.0,0.88420227]
[1727771439784,0.001648,64066.0,64065.0,0.97778156]
[1727771441568,0.001648,64066.0,64065.0,0.88420227]
[1727771442449,0.001648,64066.0,64065.0,0.86806553]
[1727771442678,0.001648,64066.0,64065.0,0.8842522]
[1727771445193,0.001648,64066.0,64065.0,0.94133513]
[1727771445834,0.001648,64066.0,64065.0,0.94132432]
[1727771446957,0.001648,64066.0,64065.0,1.05829844]
[1727771449006,0.001648,64066.0,64065.0,1.05828249]
[1727771449217,0.001648,64066.0,64065.0,0.94130837]
[1727771450383,0.097808,64067.0,64066.0,0.262589]
[1727771450625,0.097808,64067.0,64066.0,0.72387632]
[1727771450626,0.011648,64067.0,64066.0,0.72387632]
[1727771450876,0.001648,64072.0,64071.0,0.262576]
[1727771451113,0.001648,64072.0,64071.0,0.73660119]
[1727771451384,0.001648,64072.0,64071.0,0.73348022]
[1727771452075,0.001648,64072.0,64071.0,0.64695193]
[1727771452329,0.001648,64072.0,64071.0,0.66323212]
[1727771452585,0.001648,64072.0,64071.0,0.67723212]
[1727771453062,0.001648,64072.0,64071.0,0.75943212]
[1727771453307,0.02610523,64072.0,64071.0,0.93353705]
[1727771453554,0.02610523,64072.0,64071.0,0.77343212]
[1727771453786,0.02610523,64072.0,64071.0,0.94753678]
[1727771454030,0.02610523,64072.0,64071.0,0.96178706]
[1727771454271,0.02610523,64072.0,64071.0,0.92767951]
[1727771454272,2.3e-07,64072.0,64071.0,0.92767951]
[1727771454549,0.0498864,64084.0,64083.0,0.257047]
[1727771454791,0.0498864,64084.0,64083.0,0.86557255]
[1727771455045,0.0938,64086.0,64085.0,0.157042]
[1727771455317,0.0938,64086.0,64085.0,0.72530831]
[1727771455554,0.0938,64086.0,64085.0,0.42979547]
[1727771455777,0.0938,64086.0,64085.0,0.4134998]
[1727771455992,0.0938,64086.0,64085.0,0.42977915]
[1727771456232,0.0938,64086.0,64085.0,0.4134998]
[1727771456723,0.0938,64086.0,64085.0,0.4124998]
[1727771456941,0.0938,64086.0,64085.0,0.256042]
[1727771457412,0.0938,64086.0,64085.0,0.269042]
[1727771457413,0.1724,64086.0,64085.0,0.269042]
[1727771457641,0.1724,64086.0,64085.0,0.279042]
[1727771458776,0.1744,64086.0,64085.0,0.279042]
[1727771459450,0.1724,64086.0,64085.0,0.279042]
[1727771459872,0.1769,64086.0,64085.0,0.279042]
[1727771460553,0.1769,64086.0,64085.0,0.179042]
[1727771462119,0.20135655,64086.0,64085.0,0.179042]
[1727771463428,0.1769,64086.0,64085.0,0.179042]
[1727771466331,0.20135629,64086.0,64085.0,0.179042]
[1727771466745,0.1029,64079.0,64078.0,0.468174]
[1727771466967,0.1029,64079.0,64078.0,0.156059]
[1727771466968,0.29768247,64079.0,64078.0,0.156059]
[1727771467402,0.0045,64073.0,64071.0,0.312149]
[1727771467616,0.1785,64072.0,64071.0,0.468225]
[1727771468323,0.1785,64072.0,64070.0,0.156078]
[1727771468324,0.0065,64071.0,64070.0,0.156078]
[1727771468525,0.19678247,64072.0,64066.0,0.468266]
[1727771468526,0.0045,64067.0,64066.0,0.468266]
[1727771468730,0.0957,64067.0,64066.0,0.468266]
[1727771469159,0.0912,64067.0,64066.0,0.468266]
[1727771470068,0.0912,64067.0,64066.0,0.7247238]
[1727771470726,0.0835,64077.0,64075.0,0.156067]
[1727771470727,0.0934,64076.0,64075.0,0.156067]
[1727771470946,0.0934,64076.0,64075.0,0.27424947]
[1727771472015,0.0934,64076.0,64075.0,0.27524947]
[1727771472251,0.0954,64076.0,64075.0,0.27524947]
[1727771472887,0.0954,64076.0,64075.0,0.156067]
[1727771473524,0.0934,64076.0,64075.0,0.156067]
[1727771473940,0.0944,64076.0,64075.0,0.156067]
[1727771474156,0.0934,64076.0,64075.0,0.156067]
[1727771474618,0.0944,64076.0,64075.0,0.156067]
[1727771474829,0.0944,64076.0,64075.0,0.157067]
[1727771475440,0.0944,64076.0,64075.0,0.156067]
[1727771475866,0.0944,64076.0,64075.0,0.157067]
[1727771476268,0.0944,64076.0,64075.0,0.156067]
[1727771476470,0.0944,64076.0,64075.0,0.37424947]
[1727771476847,0.0944,64076.0,64075.0,0.38424947]
[1727771477062,0.0954,64076.0,64075.0,0.39224947]
[1727771477919,0.002,64076.0,64075.0,0.39324947]
[1727771478133,0.002,64076.0,64075.0,0.54970727]
[1727771481868,0.002,64076.0,64075.0,0.274067]
[1727771481869,0.0928,64076.0,64075.0,0.274067]
[1727771483173,0.11725921,64076.0,64075.0,0.274067]
[1727771483391,0.12175921,64076.0,64075.0,0.274891]
[1727771486270,0.11725921,64076.0,64075.0,0.274891]
[1727771486493,0.12175921,64076.0,64075.0,0.274891]
[1727771488224,0.12175921,64076.0,64075.0,0.275891]
[1727771488443,0.12175921,64076.0,64075.0,0.274891]
[1727771489313,0.0973,64076.0,64075.0,0.274891]
[1727771493142,0.1765,64076.0,64075.0,0.274891]
[1727771495838,0.0928,64076.0,64075.0,0.274891]
[1727771499988,0.0973,64076.0,64075.0,0.274891]
[1727771501937,0.12175894,64076.0,64075.0,0.274891]
[1727771502164,0.11725894,64076.0,64075.0,0.275891]
[1727771502384,0.02645894,64076.0,64075.0,0.275891]
[1727771503100,0.002,64076.0,64075.0,0.275891]
[1727771503839,0.002,64076.0,64075.0,0.45577845]
[1727771504063,0.002,64076.0,64075.0,0.53287845]
[1727771504277,0.002,64076.0,64075.0,0.68933625]
[1727771510078,0.002,64076.0,64075.0,0.75947887]
[1727771510290,0.002,64076.0,64075.0,0.97020956]
[1727771510964,0.002,64076.0,64075.0,1.00678789]
[1727771511402,0.002,64076.0,64075.0,0.97033674]
[1727771511900,0.002,64076.0,64075.0,0.97583674]
[1727771512358,0.001,64076.0,64075.0,0.96783674]
[1727771512582,0.001,64076.0,64075.0,0.98183674]
[1727771513465,0.0494693,64084.0,64083.0,0.257047]
[1727771513682,0.0494693,64084.0,64083.0,0.59339225]
[1727771513912,0.001648,64085.0,64084.0,0.257045]
[1727771514364,0.001648,64085.0,64084.0,0.26016553]
[1727771514585,0.001648,64085.0,64084.0,0.257045]
[1727771515512,0.001648,64085.0,64084.0,0.27416553]